[Event "Titled Tuesday Blitz March 29 Early 2022"]
[White "Sapunov, Evgeny"]
[Black "Gareyev, Timur"]
[WhiteFideId "4126661"]
[BlackFideId "14200937"]
[WhiteElo "2470"]
[BlackElo "2582"]
[Result "0-1"]
[Round "08"]
[TimeControl "180+1"]
[Date "2022.03.29"]
[WhiteClock "0:00:49"]
[BlackClock "0:00:41"]

1. Nf3 {[%clk 0:03:00]}  c5 {[%clk 0:02:58]} 2. c4 {[%clk 0:03:00]}  g6 {[%clk 0:02:58]} 3. d4 {[%clk 0:02:56]}  cxd4 {[%clk 0:02:59]} 4. Nxd4 {[%clk 0:02:56]}  Nc6 {[%clk 0:02:58]} 5. Nc2 {[%clk 0:02:54]}  Bg7 {[%clk 0:02:55]} 6. e4 {[%clk 0:02:54]}  d6 {[%clk 0:02:55]} 7. Be2 {[%clk 0:02:53]}  Be6 {[%clk 0:02:51]} 8. O-O {[%clk 0:02:50]}  Rc8 {[%clk 0:02:51]} 9. Ne3 {[%clk 0:02:41]}  Qb6 {[%clk 0:02:31]} 10. Na3 {[%clk 0:02:20]}  Nf6 {[%clk 0:02:27]} 11. Nd5 {[%clk 0:02:20]}  Qd4 {[%clk 0:02:27]} 12. Qxd4 {[%clk 0:01:58]}  Nxd4 {[%clk 0:02:25]} 13. Bd3 {[%clk 0:01:59]}  Ng4 {[%clk 0:02:18]} 14. f4 {[%clk 0:01:50]}  f5 {[%clk 0:01:56]} 15. h3 {[%clk 0:01:38]}  Nf6 {[%clk 0:01:55]} 16. exf5 {[%clk 0:01:35]}  Bxd5 {[%clk 0:01:34]} 17. cxd5 {[%clk 0:01:33]}  gxf5 {[%clk 0:01:24]} 18. Nb5 {[%clk 0:01:13]}  Nxd5 {[%clk 0:01:11]} 19. Nxa7 {[%clk 0:01:13]}  Rc5 {[%clk 0:01:07]} 20. a4 {[%clk 0:01:09]}  Nb4 {[%clk 0:01:04]} 21. Bb5+ {[%clk 0:01:06]}  Kf7 {[%clk 0:01:03]} 22. Rd1 {[%clk 0:01:04]}  Ra8 {[%clk 0:01:02]} 23. Be3 {[%clk 0:01:03]}  Nbc2 {[%clk 0:01:02]} 24. Bf2 {[%clk 0:00:55]}  Nxa1 {[%clk 0:00:54]} 25. Rxa1 {[%clk 0:00:50]}  Rxa7 {[%clk 0:00:50]} 26. Rd1 {[%clk 0:00:51]}  Nxb5 {[%clk 0:00:44]} 27. Bxc5 {[%clk 0:00:49]}  Rxa4 {[%clk 0:00:41]} 0-1


[Site "https://www.chess.com"]

[Event "Titled Tuesday Blitz March 29 Early 2022"]
[White "Shohat, Yotam"]
[Black "Kucuksari, Kaan"]
[WhiteFideId "2813955"]
[BlackFideId "6380166"]
[WhiteElo "2507"]
[BlackElo "2710"]
[Result "1-0"]
[Round "08"]
[TimeControl "180+1"]
[Date "2022.03.30"]
[WhiteClock "0:02:20"]
[BlackClock "0:02:12"]

1. e4 {[%clk 0:03:00]}  e5 {[%clk 0:02:56]} 2. f4 {[%clk 0:03:00]}  exf4 {[%clk 0:02:56]} 3. Bc4 {[%clk 0:02:59]}  Nf6 {[%clk 0:02:52]} 4. Nc3 {[%clk 0:02:58]}  Nxe4 {[%clk 0:02:51]} 5. Qe2 {[%clk 0:02:52]}  f5 {[%clk 0:02:51]} 6. d3 {[%clk 0:02:47]}  Qh4+ {[%clk 0:02:50]} 7. Kf1 {[%clk 0:02:40]}  c6 {[%clk 0:02:45]} 8. dxe4 {[%clk 0:02:38]}  fxe4 {[%clk 0:02:39]} 9. Nxe4 {[%clk 0:02:38]}  Kd8 {[%clk 0:02:32]} 10. Nf3 {[%clk 0:02:33]}  Qe7 {[%clk 0:02:25]} 11. Bxf4 {[%clk 0:02:32]}  d5 {[%clk 0:02:24]} 12. Bg5 {[%clk 0:02:32]}  dxe4 {[%clk 0:02:14]} 13. Bxe7+ {[%clk 0:02:31]}  Bxe7 {[%clk 0:02:14]} 14. Qxe4 {[%clk 0:02:31]}  Bf6 {[%clk 0:02:15]} 15. Rd1+ {[%clk 0:02:27]}  Kc7 {[%clk 0:02:15]} 16. Qf4+ {[%clk 0:02:27]}  Kb6 {[%clk 0:02:15]} 17. Rd3 {[%clk 0:02:22]}  a6 {[%clk 0:02:12]} 18. Rb3+ {[%clk 0:02:20]}  Ka7 {[%clk 0:02:12]} 19. Qe3+ {[%clk 0:02:20]} 1-0


[Site "https://www.chess.com"]

[Event "Titled Tuesday Blitz March 29 Early 2022"]
[White "Shtyka, Sergey"]
[Black "Namitbir Singh Walia"]
[WhiteFideId "4138465"]
[BlackFideId "35071068"]
[WhiteElo "2014"]
[BlackElo "1565"]
[Result "0-1"]
[Round "08"]
[TimeControl "180+1"]
[Date "2022.03.30"]
[WhiteClock "0:00:10"]
[BlackClock "0:00:10"]

1. e4 {[%clk 0:03:00]}  c5 {[%clk 0:02:59]} 2. Nf3 {[%clk 0:03:00]}  Nc6 {[%clk 0:03:00]} 3. d4 {[%clk 0:02:58]}  cxd4 {[%clk 0:03:00]} 4. Nxd4 {[%clk 0:02:58]}  g6 {[%clk 0:03:01]} 5. Nc3 {[%clk 0:02:58]}  Bg7 {[%clk 0:03:01]} 6. Nb3 {[%clk 0:02:59]}  Nf6 {[%clk 0:03:01]} 7. Be2 {[%clk 0:02:59]}  O-O {[%clk 0:03:01]} 8. O-O {[%clk 0:02:59]}  d6 {[%clk 0:03:01]} 9. Bg5 {[%clk 0:02:59]}  a6 {[%clk 0:02:48]} 10. Qd2 {[%clk 0:02:58]}  b5 {[%clk 0:02:47]} 11. f3 {[%clk 0:02:50]}  Be6 {[%clk 0:02:41]} 12. Rad1 {[%clk 0:02:49]}  Rc8 {[%clk 0:02:38]} 13. Bh6 {[%clk 0:02:47]}  Bc4 {[%clk 0:02:26]} 14. Bxg7 {[%clk 0:02:45]}  Kxg7 {[%clk 0:02:26]} 15. a3 {[%clk 0:02:39]}  Na5 {[%clk 0:02:14]} 16. e5 {[%clk 0:02:26]}  Qb6+ {[%clk 0:02:03]} 17. Kh1 {[%clk 0:02:12]}  dxe5 {[%clk 0:02:02]} 18. Nxa5 {[%clk 0:02:09]}  Qxa5 {[%clk 0:02:01]} 19. Bxc4 {[%clk 0:02:08]}  Rxc4 {[%clk 0:02:01]} 20. Qe3 {[%clk 0:02:05]}  b4 {[%clk 0:01:53]} 21. axb4 {[%clk 0:02:01]}  Rxb4 {[%clk 0:01:53]} 22. b3 {[%clk 0:01:59]}  Rc8 {[%clk 0:01:52]} 23. Rd3 {[%clk 0:01:52]}  Qc7 {[%clk 0:01:37]} 24. g4 {[%clk 0:01:50]}  e4 {[%clk 0:01:31]} 25. g5 {[%clk 0:01:35]}  exd3 {[%clk 0:01:06]} 26. gxf6+ {[%clk 0:01:35]}  exf6 {[%clk 0:01:07]} 27. Nd5 {[%clk 0:01:35]}  Qd6 {[%clk 0:01:07]} 28. Nxb4 {[%clk 0:01:33]}  Qxb4 {[%clk 0:01:08]} 29. Qxd3 {[%clk 0:01:30]}  a5 {[%clk 0:01:04]} 30. Rf2 {[%clk 0:00:59]}  Qe1+ {[%clk 0:01:02]} 31. Kg2 {[%clk 0:00:59]}  Rc5 {[%clk 0:01:00]} 32. f4 {[%clk 0:00:57]}  Qe6 {[%clk 0:00:44]} 33. f5 {[%clk 0:00:50]}  Qc6+ {[%clk 0:00:40]} 34. Kg1 {[%clk 0:00:46]}  a4 {[%clk 0:00:27]} 35. bxa4 {[%clk 0:00:44]}  Qxa4 {[%clk 0:00:28]} 36. Kf1 {[%clk 0:00:36]}  Qa1+ {[%clk 0:00:27]} 37. Kg2 {[%clk 0:00:36]}  Qe5 {[%clk 0:00:27]} 38. Kg1 {[%clk 0:00:35]}  Rc3 {[%clk 0:00:26]} 39. Qe2 {[%clk 0:00:29]}  Re3 {[%clk 0:00:25]} 40. Qg4 {[%clk 0:00:29]}  Re1+ {[%clk 0:00:23]} 41. Kg2 {[%clk 0:00:29]}  Re4 {[%clk 0:00:21]} 42. Qg3 {[%clk 0:00:27]}  Qd4 {[%clk 0:00:19]} 43. h3 {[%clk 0:00:24]}  Re3 {[%clk 0:00:19]} 44. Qf4 {[%clk 0:00:22]}  Qd5+ {[%clk 0:00:18]} 45. Kh2 {[%clk 0:00:21]}  Re1 {[%clk 0:00:17]} 46. Rg2 {[%clk 0:00:22]}  Re5 {[%clk 0:00:12]} 47. fxg6 {[%clk 0:00:20]}  hxg6 {[%clk 0:00:13]} 48. h4 {[%clk 0:00:20]}  Rf5 {[%clk 0:00:13]} 49. Qg4 {[%clk 0:00:19]}  Rh5 {[%clk 0:00:13]} 50. Kg1 {[%clk 0:00:18]}  Qc5+ {[%clk 0:00:13]} 51. Kh2 {[%clk 0:00:19]}  Qd6+ {[%clk 0:00:12]} 52. Kh1 {[%clk 0:00:18]}  Kh7 {[%clk 0:00:13]} 53. Kg1 {[%clk 0:00:18]}  Qc5+ {[%clk 0:00:12]} 54. Kh2 {[%clk 0:00:18]}  Qe5+ {[%clk 0:00:10]} 55. Kh1 {[%clk 0:00:18]}  Qe1+ {[%clk 0:00:10]} 56. Rg1 {[%clk 0:00:13]}  Rxh4+ {[%clk 0:00:10]} 57. Qxh4+ {[%clk 0:00:13]}  Qxh4+ {[%clk 0:00:11]} 58. Kg2 {[%clk 0:00:14]}  Qe4+ {[%clk 0:00:11]} 59. Kh2 {[%clk 0:00:12]}  Qxc2+ {[%clk 0:00:11]} 60. Kh3 {[%clk 0:00:12]}  Qf5+ {[%clk 0:00:10]} 61. Kh2 {[%clk 0:00:12]}  Qf2+ {[%clk 0:00:10]} 62. Kh1 {[%clk 0:00:09]}  Qxg1+ {[%clk 0:00:09]} 63. Kxg1 {[%clk 0:00:10]}  Kh6 {[%clk 0:00:10]} 0-1


[Site "https://www.chess.com"]

[Event "Titled Tuesday Blitz March 29 Early 2022"]
[White "Smietanska, Wiktoria"]
[Black "Quirke, Jeffrey"]
[WhiteFideId "21869359"]
[BlackFideId "2013029"]
[WhiteElo "1893"]
[BlackElo "2169"]
[Result "1/2-1/2"]
[Round "08"]
[TimeControl "180+1"]
[Date "2022.03.30"]
[WhiteClock "0:00:02"]
[BlackClock "0:00:01"]

1. c4 {[%clk 0:03:00]}  e6 {[%clk 0:02:56]} 2. Nc3 {[%clk 0:03:00]}  d5 {[%clk 0:02:55]} 3. cxd5 {[%clk 0:03:00]}  exd5 {[%clk 0:02:55]} 4. d4 {[%clk 0:03:00]}  c6 {[%clk 0:02:55]} 5. Nf3 {[%clk 0:02:58]}  Bf5 {[%clk 0:02:49]} 6. Bf4 {[%clk 0:02:57]}  Bd6 {[%clk 0:02:48]} 7. Bg3 {[%clk 0:02:57]}  Nf6 {[%clk 0:02:35]} 8. e3 {[%clk 0:02:56]}  O-O {[%clk 0:02:33]} 9. Bd3 {[%clk 0:02:56]}  Bxd3 {[%clk 0:02:32]} 10. Qxd3 {[%clk 0:02:57]}  Re8 {[%clk 0:02:29]} 11. O-O {[%clk 0:02:53]}  Bxg3 {[%clk 0:02:26]} 12. hxg3 {[%clk 0:02:50]}  Nbd7 {[%clk 0:02:27]} 13. b4 {[%clk 0:02:49]}  a6 {[%clk 0:02:19]} 14. Rab1 {[%clk 0:02:45]}  Nb6 {[%clk 0:02:15]} 15. Rfc1 {[%clk 0:02:38]}  Ne4 {[%clk 0:02:14]} 16. Nd2 {[%clk 0:02:28]}  Nxd2 {[%clk 0:02:04]} 17. Qxd2 {[%clk 0:02:29]}  Nc4 {[%clk 0:02:03]} 18. Qd3 {[%clk 0:02:17]}  b5 {[%clk 0:01:52]} 19. a4 {[%clk 0:02:11]}  Qe7 {[%clk 0:01:49]} 20. axb5 {[%clk 0:02:03]}  axb5 {[%clk 0:01:48]} 21. Qf5 {[%clk 0:01:38]}  g6 {[%clk 0:01:47]} 22. Qf4 {[%clk 0:01:33]}  Kg7 {[%clk 0:01:41]} 23. g4 {[%clk 0:01:22]}  h6 {[%clk 0:01:39]} 24. g3 {[%clk 0:01:18]}  Ra3 {[%clk 0:01:29]} 25. Kg2 {[%clk 0:01:11]}  Rea8 {[%clk 0:00:47]} 26. Rh1 {[%clk 0:01:05]}  Qg5 {[%clk 0:00:46]} 27. Qxg5 {[%clk 0:00:44]}  hxg5 {[%clk 0:00:47]} 28. Rhc1 {[%clk 0:00:45]}  Kf6 {[%clk 0:00:36]} 29. Rc2 {[%clk 0:00:40]}  Ra1 {[%clk 0:00:34]} 30. Rcc1 {[%clk 0:00:36]}  Rxb1 {[%clk 0:00:32]} 31. Rxb1 {[%clk 0:00:36]}  Ra3 {[%clk 0:00:33]} 32. Ne2 {[%clk 0:00:35]}  Ra2 {[%clk 0:00:31]} 33. Nc3 {[%clk 0:00:34]}  Rc2 {[%clk 0:00:31]} 34. Nd1 {[%clk 0:00:31]}  Ke6 {[%clk 0:00:19]} 35. Ra1 {[%clk 0:00:28]}  Kd6 {[%clk 0:00:14]} 36. Kf1 {[%clk 0:00:25]}  Nd2+ {[%clk 0:00:10]} 37. Ke1 {[%clk 0:00:23]}  Ne4 {[%clk 0:00:10]} 38. Rb1 {[%clk 0:00:18]}  Ra2 {[%clk 0:00:08]} 39. Rb2 {[%clk 0:00:18]}  Ra1 {[%clk 0:00:07]} 40. Ke2 {[%clk 0:00:14]}  f5 {[%clk 0:00:07]} 41. gxf5 {[%clk 0:00:13]}  gxf5 {[%clk 0:00:08]} 42. Rb3 {[%clk 0:00:06]}  g4 {[%clk 0:00:08]} 43. Rb2 {[%clk 0:00:06]}  Ng5 {[%clk 0:00:06]} 44. Rb3 {[%clk 0:00:06]}  Ra2+ {[%clk 0:00:05]} 45. Rb2 {[%clk 0:00:06]}  Ra1 {[%clk 0:00:04]} 46. Rb3 {[%clk 0:00:05]}  Ne4 {[%clk 0:00:04]} 47. Rb2 {[%clk 0:00:04]}  Ra3 {[%clk 0:00:02]} 48. Kf1 {[%clk 0:00:02]}  Ra1 {[%clk 0:00:01]} 49. Ke2 {[%clk 0:00:02]} 1/2-1/2


[Site "https://www.chess.com"]

[Event "Titled Tuesday Blitz March 29 Early 2022"]
[White "Srinath, Rao S.V."]
[Black "Alinasab, Mobina"]
[WhiteFideId "5028876"]
[BlackFideId "12528897"]
[WhiteElo "2181"]
[BlackElo "2052"]
[Result "0-1"]
[Round "08"]
[TimeControl "180+1"]
[Date "2022.03.30"]
[WhiteClock "0:01:38"]
[BlackClock "0:01:00"]

1. f3 {[%clk 0:03:00]}  e5 {[%clk 0:02:57]} 2. Nh3 {[%clk 0:03:00]}  d5 {[%clk 0:02:57]} 3. Nf2 {[%clk 0:03:00]}  Nf6 {[%clk 0:02:55]} 4. g3 {[%clk 0:03:00]}  g6 {[%clk 0:02:54]} 5. Bg2 {[%clk 0:02:59]}  Bg7 {[%clk 0:02:55]} 6. O-O {[%clk 0:02:59]}  O-O {[%clk 0:02:55]} 7. c3 {[%clk 0:02:55]}  c5 {[%clk 0:02:56]} 8. d3 {[%clk 0:02:55]}  Nc6 {[%clk 0:02:56]} 9. e4 {[%clk 0:02:54]}  dxe4 {[%clk 0:02:55]} 10. dxe4 {[%clk 0:02:52]}  b6 {[%clk 0:02:55]} 11. Qe2 {[%clk 0:02:51]}  Qc7 {[%clk 0:02:54]} 12. Bg5 {[%clk 0:02:48]}  h6 {[%clk 0:02:53]} 13. Bxf6 {[%clk 0:02:47]}  Bxf6 {[%clk 0:02:54]} 14. Nd2 {[%clk 0:02:45]}  Be7 {[%clk 0:02:49]} 15. Rfd1 {[%clk 0:02:42]}  Be6 {[%clk 0:02:46]} 16. h4 {[%clk 0:02:38]}  Rfd8 {[%clk 0:02:46]} 17. Qe3 {[%clk 0:02:38]}  Kg7 {[%clk 0:02:44]} 18. h5 {[%clk 0:02:34]}  Bg5 {[%clk 0:02:40]} 19. Qe2 {[%clk 0:02:32]}  Bxd2 {[%clk 0:02:39]} 20. Rxd2 {[%clk 0:02:33]}  Rxd2 {[%clk 0:02:38]} 21. Qxd2 {[%clk 0:02:34]}  Rd8 {[%clk 0:02:38]} 22. Qe2 {[%clk 0:02:32]}  gxh5 {[%clk 0:02:25]} 23. Bh3 {[%clk 0:02:29]}  Bxh3 {[%clk 0:02:18]} 24. Nxh3 {[%clk 0:02:30]}  Qd7 {[%clk 0:02:18]} 25. Nf2 {[%clk 0:02:19]}  Qd2 {[%clk 0:02:17]} 26. Re1 {[%clk 0:02:18]}  Qxe2 {[%clk 0:02:14]} 27. Rxe2 {[%clk 0:02:19]}  c4 {[%clk 0:02:12]} 28. Kg2 {[%clk 0:02:19]}  Na5 {[%clk 0:02:10]} 29. f4 {[%clk 0:02:19]}  Kf6 {[%clk 0:02:05]} 30. Kf3 {[%clk 0:02:18]}  Nb7 {[%clk 0:02:04]} 31. Ke3 {[%clk 0:02:14]}  Nc5 {[%clk 0:02:03]} 32. Re1 {[%clk 0:02:14]}  Rg8 {[%clk 0:01:44]} 33. Kf3 {[%clk 0:02:11]}  Rd8 {[%clk 0:01:39]} 34. Rh1 {[%clk 0:02:10]}  Rd2 {[%clk 0:01:34]} 35. Rxh5 {[%clk 0:02:10]}  exf4 {[%clk 0:01:34]} 36. gxf4 {[%clk 0:02:09]}  Rxb2 {[%clk 0:01:32]} 37. Rh2 {[%clk 0:01:57]}  Ke7 {[%clk 0:01:22]} 38. Rxh6 {[%clk 0:01:51]}  Rxa2 {[%clk 0:01:20]} 39. f5 {[%clk 0:01:51]}  Rc2 {[%clk 0:01:11]} 40. f6+ {[%clk 0:01:48]}  Ke6 {[%clk 0:01:10]} 41. Nh3 {[%clk 0:01:43]}  Rxc3+ {[%clk 0:01:09]} 42. Kf4 {[%clk 0:01:42]}  Nd3+ {[%clk 0:01:02]} 43. Ke3 {[%clk 0:01:38]}  Ne5+ {[%clk 0:01:00]} 44. Kd4 {[%clk 0:01:38]}  Rd3# {[%clk 0:01:00]} 0-1


[Site "https://www.chess.com"]

[Event "Titled Tuesday Blitz March 29 Early 2022"]
[White "Steinberg, Nitzan"]
[Black "Kamsky, Gata"]
[WhiteFideId "2801795"]
[BlackFideId "2000024"]
[WhiteElo "2440"]
[BlackElo "2645"]
[Result "1/2-1/2"]
[Round "08"]
[TimeControl "180+1"]
[Date "2022.03.29"]
[WhiteClock "0:01:03"]
[BlackClock "0:00:53"]

1. e4 {[%clk 0:03:00]}  e5 {[%clk 0:02:55]} 2. Nf3 {[%clk 0:02:59]}  Nc6 {[%clk 0:02:53]} 3. Bb5 {[%clk 0:02:59]}  Nf6 {[%clk 0:02:52]} 4. O-O {[%clk 0:02:59]}  Nxe4 {[%clk 0:02:52]} 5. Re1 {[%clk 0:03:00]}  Nd6 {[%clk 0:02:52]} 6. Nxe5 {[%clk 0:03:00]}  Be7 {[%clk 0:02:51]} 7. Bf1 {[%clk 0:02:59]}  Nf5 {[%clk 0:02:47]} 8. Nf3 {[%clk 0:02:59]}  O-O {[%clk 0:02:46]} 9. d4 {[%clk 0:02:59]}  d5 {[%clk 0:02:46]} 10. c3 {[%clk 0:03:00]}  Nh4 {[%clk 0:02:42]} 11. Nxh4 {[%clk 0:02:52]}  Bxh4 {[%clk 0:02:41]} 12. Bd3 {[%clk 0:02:51]}  g6 {[%clk 0:02:31]} 13. Nd2 {[%clk 0:02:35]}  Bg5 {[%clk 0:02:27]} 14. Nf3 {[%clk 0:02:35]}  Bxc1 {[%clk 0:02:06]} 15. Qxc1 {[%clk 0:02:36]}  Bg4 {[%clk 0:02:05]} 16. Ne5 {[%clk 0:02:36]}  Nxe5 {[%clk 0:02:05]} 17. Rxe5 {[%clk 0:02:36]}  f6 {[%clk 0:01:55]} 18. Re1 {[%clk 0:02:35]}  Qd7 {[%clk 0:01:48]} 19. Qh6 {[%clk 0:02:32]}  Rae8 {[%clk 0:01:13]} 20. Qf4 {[%clk 0:01:53]}  Kg7 {[%clk 0:01:08]} 21. h3 {[%clk 0:01:51]}  Be6 {[%clk 0:01:07]} 22. h4 {[%clk 0:01:49]}  Bf7 {[%clk 0:01:05]} 23. Kh2 {[%clk 0:01:37]}  Qd6 {[%clk 0:01:01]} 24. Qxd6 {[%clk 0:01:35]}  cxd6 {[%clk 0:01:01]} 25. Kg3 {[%clk 0:01:34]}  Rxe1 {[%clk 0:00:58]} 26. Rxe1 {[%clk 0:01:34]}  Re8 {[%clk 0:00:58]} 27. Rxe8 {[%clk 0:01:33]}  Bxe8 {[%clk 0:00:58]} 28. Kf4 {[%clk 0:01:30]}  h6 {[%clk 0:00:58]} 29. g3 {[%clk 0:01:29]}  g5+ {[%clk 0:00:58]} 30. Ke3 {[%clk 0:01:29]}  Kf8 {[%clk 0:00:54]} 31. Bf5 {[%clk 0:01:26]}  Ke7 {[%clk 0:00:54]} 32. Kf3 {[%clk 0:01:16]}  b6 {[%clk 0:00:53]} 33. b3 {[%clk 0:01:03]} 1/2-1/2


[Site "https://www.chess.com"]

[Event "Titled Tuesday Blitz March 29 Early 2022"]
[White "Suarez Uriel, Adrian"]
[Black "Shuvalova, Polina"]
[WhiteFideId "22230874"]
[BlackFideId "24171760"]
[WhiteElo "2316"]
[BlackElo "2355"]
[Result "0-1"]
[Round "08"]
[TimeControl "180+1"]
[Date "2022.03.30"]
[WhiteClock "0:00:03"]
[BlackClock "0:00:06"]

1. e4 {[%clk 0:03:00]}  c5 {[%clk 0:02:59]} 2. Ne2 {[%clk 0:03:00]}  d6 {[%clk 0:02:59]} 3. g3 {[%clk 0:02:59]}  Nf6 {[%clk 0:03:00]} 4. Bg2 {[%clk 0:03:00]}  Nc6 {[%clk 0:03:00]} 5. O-O {[%clk 0:02:58]}  g6 {[%clk 0:03:00]} 6. c3 {[%clk 0:02:58]}  Bg7 {[%clk 0:02:59]} 7. d4 {[%clk 0:02:59]}  cxd4 {[%clk 0:02:58]} 8. cxd4 {[%clk 0:02:59]}  O-O {[%clk 0:02:58]} 9. Nbc3 {[%clk 0:02:59]}  Nd7 {[%clk 0:02:46]} 10. h3 {[%clk 0:02:57]}  Rb8 {[%clk 0:02:45]} 11. Be3 {[%clk 0:02:53]}  b5 {[%clk 0:02:45]} 12. Rc1 {[%clk 0:02:54]}  b4 {[%clk 0:02:44]} 13. Nd5 {[%clk 0:02:52]}  Bb7 {[%clk 0:02:43]} 14. Bg5 {[%clk 0:02:52]}  h6 {[%clk 0:02:40]} 15. Be3 {[%clk 0:02:38]}  e6 {[%clk 0:02:32]} 16. Ndf4 {[%clk 0:02:13]}  Qe7 {[%clk 0:02:29]} 17. Qd2 {[%clk 0:02:12]}  a5 {[%clk 0:02:26]} 18. h4 {[%clk 0:02:12]}  Rbc8 {[%clk 0:02:24]} 19. b3 {[%clk 0:02:10]}  Kh7 {[%clk 0:02:20]} 20. d5 {[%clk 0:02:10]}  Nce5 {[%clk 0:02:13]} 21. dxe6 {[%clk 0:02:10]}  fxe6 {[%clk 0:02:13]} 22. Nd4 {[%clk 0:02:10]}  Nc5 {[%clk 0:02:10]} 23. Rxc5 {[%clk 0:02:09]}  dxc5 {[%clk 0:02:09]} 24. Ndxe6 {[%clk 0:02:09]}  Rf6 {[%clk 0:01:57]} 25. Nxg7 {[%clk 0:02:06]}  Kxg7 {[%clk 0:01:56]} 26. Nd5 {[%clk 0:02:01]}  Bxd5 {[%clk 0:01:54]} 27. exd5 {[%clk 0:01:57]}  Nf7 {[%clk 0:01:44]} 28. Rd1 {[%clk 0:01:50]}  Kh7 {[%clk 0:01:40]} 29. Bf4 {[%clk 0:01:46]}  Qd7 {[%clk 0:01:23]} 30. Qd3 {[%clk 0:01:26]}  h5 {[%clk 0:01:14]} 31. Bf3 {[%clk 0:01:05]}  Kg8 {[%clk 0:00:46]} 32. Be4 {[%clk 0:01:05]}  Kg7 {[%clk 0:00:44]} 33. d6 {[%clk 0:01:05]}  Rd8 {[%clk 0:00:41]} 34. Qc2 {[%clk 0:01:01]}  Rxf4 {[%clk 0:00:39]} 35. gxf4 {[%clk 0:01:01]}  Qg4+ {[%clk 0:00:39]} 36. Bg2 {[%clk 0:01:00]}  Rxd6 {[%clk 0:00:33]} 37. Rxd6 {[%clk 0:00:59]}  Nxd6 {[%clk 0:00:33]} 38. Qxc5 {[%clk 0:01:00]}  Nf5 {[%clk 0:00:32]} 39. Qc7+ {[%clk 0:00:58]}  Kh6 {[%clk 0:00:32]} 40. Qe5 {[%clk 0:00:57]}  Kh7 {[%clk 0:00:31]} 41. Qc7+ {[%clk 0:00:53]}  Kh6 {[%clk 0:00:30]} 42. Qxa5 {[%clk 0:00:53]}  Nxh4 {[%clk 0:00:19]} 43. Qg5+ {[%clk 0:00:53]}  Qxg5 {[%clk 0:00:19]} 44. fxg5+ {[%clk 0:00:54]}  Kxg5 {[%clk 0:00:20]} 45. Be4 {[%clk 0:00:53]}  Kf4 {[%clk 0:00:20]} 46. Bd3 {[%clk 0:00:46]}  g5 {[%clk 0:00:19]} 47. Kf1 {[%clk 0:00:40]}  Nf3 {[%clk 0:00:19]} 48. Be2 {[%clk 0:00:38]}  g4 {[%clk 0:00:17]} 49. Kg2 {[%clk 0:00:37]}  Nd4 {[%clk 0:00:16]} 50. Bd3 {[%clk 0:00:35]}  h4 {[%clk 0:00:16]} 51. Ba6 {[%clk 0:00:33]}  h3+ {[%clk 0:00:16]} 52. Kg1 {[%clk 0:00:30]}  Nf3+ {[%clk 0:00:16]} 53. Kh1 {[%clk 0:00:31]}  Ne1 {[%clk 0:00:16]} 54. Be2 {[%clk 0:00:28]}  Nc2 {[%clk 0:00:15]} 55. Kh2 {[%clk 0:00:24]}  Nd4 {[%clk 0:00:15]} 56. Bd1 {[%clk 0:00:25]}  Nb5 {[%clk 0:00:13]} 57. Be2 {[%clk 0:00:07]}  Nc3 {[%clk 0:00:13]} 58. Bc4 {[%clk 0:00:08]}  Nxa2 {[%clk 0:00:13]} 59. Be2 {[%clk 0:00:08]}  Nc1 {[%clk 0:00:13]} 60. Bd1 {[%clk 0:00:09]}  Nd3 {[%clk 0:00:12]} 61. Kg1 {[%clk 0:00:08]}  Nc5 {[%clk 0:00:10]} 62. Kh2 {[%clk 0:00:08]}  Ne4 {[%clk 0:00:11]} 63. Kg1 {[%clk 0:00:08]}  Nc3 {[%clk 0:00:11]} 64. Bc2 {[%clk 0:00:07]}  Kf3 {[%clk 0:00:10]} 65. Bd3 {[%clk 0:00:03]}  Ne2+ {[%clk 0:00:10]} 66. Kf1 {[%clk 0:00:02]}  Nd4 {[%clk 0:00:08]} 67. Bc4 {[%clk 0:00:01]}  Kf4 {[%clk 0:00:06]} 68. Bd5 {[%clk 0:00:02]}  Nf3 {[%clk 0:00:05]} 69. Ke2 {[%clk 0:00:02]}  h2 {[%clk 0:00:05]} 70. Bxf3 {[%clk 0:00:02]}  gxf3+ {[%clk 0:00:05]} 71. Kd3 {[%clk 0:00:03]}  h1=Q {[%clk 0:00:06]} 0-1


[Site "https://www.chess.com"]

[Event "Titled Tuesday Blitz March 29 Early 2022"]
[White "Terletsky, Oleg"]
[Black "Zemlyanskii, Ivan"]
[WhiteFideId "14116774"]
[BlackFideId "24249971"]
[WhiteElo "2064"]
[BlackElo "1759"]
[Result "0-1"]
[Round "08"]
[TimeControl "180+1"]
[Date "2022.03.30"]
[WhiteClock "0:00:03"]
[BlackClock "0:00:23"]

1. e4 {[%clk 0:03:00]}  c5 {[%clk 0:02:59]} 2. Nf3 {[%clk 0:03:00]}  e6 {[%clk 0:02:58]} 3. d4 {[%clk 0:03:00]}  cxd4 {[%clk 0:02:58]} 4. Nxd4 {[%clk 0:03:01]}  Nf6 {[%clk 0:02:59]} 5. Nc3 {[%clk 0:03:01]}  Nc6 {[%clk 0:02:59]} 6. Ndb5 {[%clk 0:02:59]}  Bc5 {[%clk 0:02:56]} 7. Nd6+ {[%clk 0:02:57]}  Ke7 {[%clk 0:02:56]} 8. Bf4 {[%clk 0:02:57]}  e5 {[%clk 0:02:56]} 9. Nf5+ {[%clk 0:02:58]}  Kf8 {[%clk 0:02:56]} 10. Bg5 {[%clk 0:02:58]}  d6 {[%clk 0:02:57]} 11. Nd5 {[%clk 0:02:45]}  Bxf2+ {[%clk 0:02:48]} 12. Ke2 {[%clk 0:02:45]}  Nd4+ {[%clk 0:02:45]} 13. Nxd4 {[%clk 0:02:30]}  Bxd4 {[%clk 0:02:44]} 14. Bxf6 {[%clk 0:02:16]}  gxf6 {[%clk 0:02:40]} 15. Qd2 {[%clk 0:02:11]}  h5 {[%clk 0:02:33]} 16. c3 {[%clk 0:02:03]}  Bc5 {[%clk 0:02:29]} 17. Kd1 {[%clk 0:01:57]}  Be6 {[%clk 0:02:22]} 18. Bc4 {[%clk 0:01:57]}  Rc8 {[%clk 0:02:13]} 19. Rf1 {[%clk 0:01:52]}  b5 {[%clk 0:01:53]} 20. Bb3 {[%clk 0:01:42]}  Bxd5 {[%clk 0:01:40]} 21. Bxd5 {[%clk 0:01:24]}  Kg7 {[%clk 0:01:30]} 22. Rf3 {[%clk 0:01:19]}  Rh6 {[%clk 0:01:29]} 23. Kc2 {[%clk 0:01:18]}  Rg6 {[%clk 0:01:23]} 24. Raf1 {[%clk 0:01:15]}  b4 {[%clk 0:01:18]} 25. c4 {[%clk 0:01:11]}  Bd4 {[%clk 0:01:05]} 26. Rh3 {[%clk 0:01:08]}  Qh8 {[%clk 0:01:00]} 27. Rf5 {[%clk 0:01:06]}  Qh6 {[%clk 0:00:57]} 28. Rfxh5 {[%clk 0:01:02]}  Qxd2+ {[%clk 0:00:56]} 29. Kxd2 {[%clk 0:01:02]}  Rxg2+ {[%clk 0:00:56]} 30. Kd3 {[%clk 0:01:02]}  Kf8 {[%clk 0:00:51]} 31. Rh7 {[%clk 0:00:53]}  Rg7 {[%clk 0:00:49]} 32. Rh8+ {[%clk 0:00:49]}  Rg8 {[%clk 0:00:48]} 33. R8h7 {[%clk 0:00:38]}  Rc7 {[%clk 0:00:49]} 34. Rf3 {[%clk 0:00:36]}  Rg6 {[%clk 0:00:47]} 35. h4 {[%clk 0:00:34]}  Rg4 {[%clk 0:00:39]} 36. Rxf6 {[%clk 0:00:28]}  Bxb2 {[%clk 0:00:37]} 37. Bxf7 {[%clk 0:00:20]}  Rf4 {[%clk 0:00:35]} 38. Bd5+ {[%clk 0:00:07]}  Rxf6 {[%clk 0:00:34]} 39. Rxc7 {[%clk 0:00:08]}  Bd4 {[%clk 0:00:33]} 40. h5 {[%clk 0:00:06]}  Rf3+ {[%clk 0:00:32]} 41. Ke2 {[%clk 0:00:06]}  Rh3 {[%clk 0:00:32]} 42. Bf7 {[%clk 0:00:05]}  a5 {[%clk 0:00:28]} 43. Bg6 {[%clk 0:00:05]}  a4 {[%clk 0:00:28]} 44. Rb7 {[%clk 0:00:04]}  b3 {[%clk 0:00:28]} 45. axb3 {[%clk 0:00:04]}  axb3 {[%clk 0:00:29]} 46. Bf5 {[%clk 0:00:02]}  Rh2+ {[%clk 0:00:26]} 47. Kf3 {[%clk 0:00:02]}  b2 {[%clk 0:00:27]} 48. h6 {[%clk 0:00:02]}  Rxh6 {[%clk 0:00:25]} 49. Kg4 {[%clk 0:00:02]}  Rh1 {[%clk 0:00:24]} 50. Kg5 {[%clk 0:00:03]}  b1=Q {[%clk 0:00:23]} 0-1


[Site "https://www.chess.com"]